bitfinex/quotes_ETHUSD_20260306
["timestamp","ask_amount","ask_price","bid_price","bid_amount"]
[1772825130037,2.01657085,1984.1,1983.6,0.74492989]
[1772825130237,2.01655906,1984.2,1983.6,0.74492989]
[1772825131350,2.64089581,1984.3,1983.8,0.74492989]
[1772825131546,0.75655372,1984.2,1983.6,0.74492989]
[1772825132924,2.64089581,1984.3,1983.6,0.74492989]
[1772825133124,3.38494661,1984.3,1983.6,0.74492989]
[1772825133326,0.7440508,1984.2,1983.7,1.26027121]
[1772825134358,0.7440508,1984.2,1983.6,5.81759238]
[1772825134542,0.7440508,1984.2,1983.6,2.03664841]
[1772825135143,0.7440508,1984.2,1983.7,0.43356381]
[1772825135749,0.7440508,1984.2,1983.8,1.26020768]
[1772825135952,1.25996508,1984.2,1983.8,0.43437383]
[1772825136158,3.38499292,1984.3,1983.8,0.43437383]
[1772825136332,2.1250508,1984.3,1983.8,0.43437383]
[1772825136529,3.38495964,1984.3,1983.8,0.43437383]
[1772825136933,2.64089477,1984.3,1983.8,0.43437383]
[1772825137682,0.7440508,1984.2,1983.0,1.253]
[1772825137830,0.7440508,1984.2,1982.9,0.066636]
[1772825137831,0.7440508,1983.7,1982.9,0.0011]
[1772825138035,1.69458151,1983.8,1982.9,0.0011]
[1772825138036,0.90453556,1983.6,1982.9,0.0011]
[1772825138249,2.1140508,1983.5,1982.9,0.0011]
[1772825138450,0.7440508,1983.4,1982.9,0.0011]
[1772825139448,0.7440508,1983.7,1983.5,0.0011]
[1772825140047,2.00438554,1983.6,1983.5,0.0011]
[1772825142475,1.26033474,1983.6,1983.5,0.0011]
[1772825143485,2.00438554,1983.6,1983.5,0.0011]
[1772825143793,2.00438554,1983.6,1983.0,0.43901548]
[1772825143987,6.41285741,1983.8,1983.0,0.43901548]
[1772825143988,7.15703386,1983.8,1983.0,0.43901548]
[1772825144192,2.63225816,1983.8,1983.0,0.43901548]
[1772825144488,2.63225816,1983.8,1983.2,0.44231793]
[1772825144873,1.26013826,1984.0,1983.2,0.44231793]
[1772825146597,5.78426398,1984.1,1983.4,0.44373758]
[1772825147093,2.00406793,1984.1,1983.4,0.44373758]
[1772825147268,0.7440508,1984.0,1983.4,0.44373758]
[1772825148690,2.00418764,1984.0,1983.5,1.26039828]
[1772825149295,2.00418764,1984.0,1983.4,1.70415422]
[1772825149481,0.7440508,1983.9,1983.2,0.44581935]
[1772825150002,0.7440508,1983.9,1983.1,1.26061718]
[1772825150295,0.7440508,1983.9,1983.0,1.70648502]
[1772825150481,0.7440508,1983.9,1983.1,0.44648696]
[1772825151294,1.26020768,1983.8,1983.1,1.70709501]
[1772825151499,0.7440508,1983.7,1983.5,0.0011]
[1772825153472,2.00438554,1983.6,1983.5,0.0011]
[1772825154371,1.382,1983.7,1983.5,0.0011]
[1772825154684,2.64227128,1983.7,1983.5,0.0011]
[1772825155000,2.64228006,1983.7,1983.5,0.0011]
[1772825155976,3.41311521,1983.7,1983.5,0.0011]
[1772825157415,0.77083515,1983.6,1983.4,0.0011]
[1772825157619,1.26039828,1983.5,1983.4,0.0011]
[1772825160915,2.03116989,1983.6,1983.4,0.0011]
[1772825161213,0.77083515,1983.5,1983.4,0.0011]
[1772825162795,2.03123343,1983.5,1983.4,0.0011]
[1772825163823,2.03123343,1983.5,1983.2,0.0011]
[1772825165425,0.77083515,1983.5,1983.2,0.0011]
[1772825165599,2.03126032,1983.5,1983.2,0.0011]
[1772825166723,1.26052538,1983.3,1983.2,0.0011]
[1772825167224,1.99284372,1983.3,1983.2,0.0011]
[1772825169008,1.26037743,1983.6,1983.2,0.46068642]
[1772825169538,3.37462997,1983.7,1983.2,0.46068642]
[1772825170396,1.382,1983.7,1983.2,0.46068642]
[1772825170996,1.26115319,1983.9,1983.4,0.13954986]
[1772825171238,1.26114683,1983.9,1983.4,0.13954986]
[1772825171847,0.73320201,1983.8,1983.3,1.26052538]
[1772825172250,0.73320201,1983.8,1983.2,1.40179557]
[1772825172475,0.73320201,1983.8,1983.3,0.14075829]
[1772825173275,1.26027121,1983.7,1983.3,0.14075829]
[1772825173476,1.26027121,1983.7,1983.3,1.40127197]
[1772825173677,5.77423642,1983.8,1983.3,1.40127197]
[1772825175195,5.77423642,1983.8,1983.5,0.0011]
[1772825175367,5.77523642,1983.8,1983.5,0.0011]
[1772825175880,0.73320201,1983.7,1983.5,0.0011]
[1772825176895,0.73320201,1983.6,1983.2,0.0011]
[1772825177497,1.26039828,1983.5,1983.2,0.0011]
[1772825177878,1.99360029,1983.5,1983.2,0.0011]
[1772825179305,0.73320201,1983.4,1983.2,0.0011]
[1772825179801,1.26052538,1983.3,1983.2,0.0011]
[1772825181178,1.99372739,1983.3,1983.2,0.0011]
[1772825181399,1.99372739,1983.3,1982.9,0.0011]
[1772825181699,0.73265201,1983.2,1982.9,0.0011]
[1772825181904,1.99328876,1983.2,1982.9,0.0011]
[1772825182369,0.73265201,1983.2,1982.9,0.0011]
[1772825182575,1.99314368,1983.4,1982.9,0.14857922]
[1772825183206,0.73265201,1983.3,1982.9,0.14857922]
[1772825183907,1.26049167,1983.4,1982.9,0.14857922]
[1772825184317,1.99314368,1983.4,1982.9,1.40934401]
[1772825187110,1.99314368,1983.4,1983.0,0.0011]
[1772825187281,1.99414368,1983.4,1983.0,0.0011]
[1772825187482,1.99414368,1983.4,1983.0,0.13231078]
[1772825188217,1.26147056,1983.4,1983.0,0.13231078]
[1772825188583,1.26147056,1983.4,1983.0,1.39301659]
[1772825189005,2.00353522,1983.4,1983.0,1.39301659]
[1772825189203,2.00353522,1983.4,1982.9,0.0011]
[1772825189414,2.00353522,1983.4,1982.9,1.26296537]
[1772825191090,0.80767005,1983.3,1982.9,0.00218986]
[1772825191287,0.001,1983.4,1982.9,0.0011]
[1772825193211,0.81007703,1983.4,1982.9,0.0011]
[1772825193417,0.81007703,1983.4,1982.9,0.00222959]
[1772825193598,0.81007703,1983.4,1982.9,0.0011]
[1772825195693,1.26149395,1983.4,1982.9,0.0011]
[1772825195894,2.07168527,1983.4,1982.9,0.0011]
[1772825197128,0.001,1983.4,1982.9,0.0011]
[1772825199500,0.001,1983.4,1983.0,0.18204228]
[1772825199716,0.001,1983.8,1983.1,0.18204228]
[1772825199906,0.001,1983.8,1983.3,0.18204228]
[1772825200118,0.81173364,1983.8,1983.3,0.18204228]
[1772825200517,0.001,1983.8,1983.3,0.18204228]
[1772825201628,0.001,1983.9,1983.3,0.18204228]
[1772825201629,0.001,1983.9,1983.3,0.17713357]
[1772825201808,0.001,1983.9,1983.5,0.17713357]
[1772825202629,0.001,1984.2,1983.5,0.17519558]
[1772825203930,0.001,1984.3,1983.8,0.17325819]
[1772825204118,0.001,1984.4,1983.7,0.17325819]
[1772825204322,0.001,1984.4,1983.8,0.17325819]
[1772825206116,0.001,1984.4,1984.0,0.16939036]
[1772825206831,0.81223364,1984.4,1983.9,1.26014416]
[1772825207244,0.81223364,1984.4,1983.9,1.42757298]
[1772825207738,0.81223364,1984.4,1984.0,0.16546934]
[1772825207958,5.03808053,1984.9,1983.9,1.26014416]
[1772825207959,0.81123364,1984.8,1984.1,0.16446934]
[1772825208154,0.81123364,1984.8,1984.3,0.16446934]
[1772825209433,2.0708106,1984.8,1984.3,0.16446934]
[1772825209639,0.81273364,1985.0,1984.3,0.16446934]
[1772825210016,0.81273364,1985.0,1984.5,0.1605843]
[1772825210921,0.81273364,1985.0,1984.4,1.25982664]
[1772825210922,0.81173364,1984.9,1984.4,1.25982664]
[1772825211513,0.81173364,1984.9,1984.4,1.26092664]
[1772825211914,0.001,1984.7,1984.4,1.26092664]
[1772825212621,0.001,1984.7,1984.4,0.0011]
[1772825212622,0.81273364,1984.7,1984.4,0.0011]
[1772825214735,2.07143332,1984.6,1984.4,0.0011]
[1772825215416,0.81173364,1984.6,1984.4,0.0011]
[1772825216746,0.82530261,1984.4,1983.8,0.11912578]
[1772825216942,0.82530261,1984.4,1983.7,0.12022578]
[1772825218824,0.82530261,1984.6,1983.9,0.11642958]
[1772825220842,0.82530261,1984.6,1984.1,0.11254181]
[1772825221045,0.001,1984.7,1984.1,0.11254181]
[1772825222851,0.82652262,1984.7,1984.2,1.25995363]
[1772825223041,0.82652262,1984.7,1984.3,0.10904695]
[1772825223520,0.001,1984.7,1984.3,0.10904695]
[1772825223720,2.08598167,1985.0,1984.4,0.10610629]
[1772825224422,0.001,1985.0,1984.4,0.10610629]
[1772825225039,0.001,1985.0,1984.6,0.10420423]
[1772825225456,0.82580261,1985.4,1984.6,0.10420423]
[1772825225627,0.82580261,1985.3,1984.6,0.10420423]
[1772825227040,0.82580261,1985.3,1984.7,1.25963621]
[1772825227555,0.82580261,1985.3,1984.7,1.35808291]
[1772825227926,1.65132523,1985.5,1984.8,0.0984467]
[1772825229553,2.91046239,1985.5,1985.0,0.84945016]
[1772825231192,0.82552262,1985.4,1984.9,1.25950929]
[1772825232049,0.82552262,1985.6,1985.0,0.84945016]
[1772825232253,0.82552262,1985.7,1985.0,0.84945016]
[1772825233937,0.82552262,1985.7,1985.2,0.84945016]
[1772825234829,2.08452634,1985.7,1985.2,0.84945016]
[1772825235367,0.82552262,1985.7,1985.2,0.84945016]
[1772825235568,0.82552262,1986.0,1985.2,0.84945016]
[1772825235966,0.82552262,1986.0,1985.4,0.84945016]
[1772825236467,0.82552262,1985.9,1985.0,0.84945016]
[1772825237340,0.001,1985.6,1985.0,0.84945016]
[1772825237950,0.82652262,1985.6,1985.1,2.10883255]
[1772825238278,0.82652262,1985.6,1984.8,0.84945016]
[1772825239269,0.82552262,1985.9,1984.9,0.84945016]
[1772825239485,0.82552262,1985.9,1985.1,0.84945016]
[1772825240152,0.82552262,1985.8,1985.2,1.25931896]
[1772825240355,0.82552262,1986.0,1985.3,0.84945016]
[1772825242671,0.82552262,1986.0,1985.4,2.10864226]
[1772825243196,0.82652262,1986.2,1985.5,0.84945016]
[1772825243845,0.001,1986.2,1985.5,0.84945016]
[1772825245866,0.82652262,1986.2,1985.6,2.10851542]
[1772825246070,0.82652262,1986.2,1985.7,0.84945016]
[1772825247242,0.001,1986.2,1985.8,0.84945016]
[1772825247445,0.82552262,1986.6,1986.0,0.84945016]
[1772825247685,0.82652262,1986.8,1986.0,0.84945016]
[1772825247884,0.82652262,1986.8,1986.2,0.84945016]
[1772825248753,0.001,1986.8,1986.2,0.84945016]
[1772825249139,0.82652262,1986.8,1986.2,0.84945016]
[1772825249347,0.82552262,1986.7,1986.2,0.84945016]
[1772825249877,0.82552262,1986.7,1986.3,1.25862155]
[1772825252757,1.02553483,1986.6,1986.3,1.25862155]
[1772825253278,1.02653483,1986.8,1986.3,1.25862155]
[1772825253782,2.28484244,1986.8,1986.3,1.25862155]
[1772825253965,1.02653483,1986.8,1986.3,1.25862155]
[1772825254147,0.001,1986.8,1986.4,1.00964682]
[1772825254573,1.02653482,1986.9,1986.4,1.00964682]
[1772825254764,1.01759446,1986.9,1986.6,1.00964682]
[1772825255175,0.001,1987.1,1986.6,1.00964682]
[1772825256267,1.02653483,1987.1,1986.6,1.00964682]
[1772825256474,2.28465671,1987.1,1986.6,1.00964682]
[1772825256870,1.02653483,1987.1,1986.6,2.26804176]
[1772825257381,0.001,1987.1,1986.7,1.00964682]
[1772825259771,0.001,1987.1,1986.7,2.26796793]
[1772825261050,1.02653483,1987.1,1986.7,1.25832111]
[1772825261348,1.02653483,1987.1,1986.6,1.25840584]
[1772825261669,1.02653483,1987.1,1986.6,2.26805266]
[1772825261874,2.28465064,1987.1,1986.6,2.26805266]
[1772825262082,1.02553483,1987.0,1986.6,1.25840584]
[1772825262449,1.02553483,1987.0,1986.6,2.26805266]
[1772825262970,0.001,1987.0,1986.6,2.26805266]
[1772825263169,1.02553483,1987.4,1986.7,1.00964682]
[1772825263963,1.02553483,1987.3,1986.8,1.25830481]
[1772825264164,1.02553483,1987.3,1986.5,1.25849484]
[1772825264369,1.02553483,1987.0,1986.4,0.0011]
[1772825264551,1.02553483,1987.0,1986.4,1.25964571]
[1772825264751,1.02553483,1987.0,1986.4,2.26929253]
[1772825265388,1.02553483,1987.0,1986.4,0.0011]
[1772825265555,1.02553483,1987.0,1986.4,1.25964925]
[1772825265882,1.02553483,1986.8,1986.4,0.0011]
[1772825266655,1.02553483,1986.8,1986.3,0.0011]
[1772825268704,2.28390297,1986.7,1986.3,0.0011]
[1772825268879,1.02553483,1986.6,1986.3,0.0011]
[1772825270585,1.25849484,1986.5,1986.3,0.0011]
[1772825270978,1.02553483,1986.6,1986.3,0.0011]
[1772825271187,1.25839884,1986.7,1986.3,1.01074682]
[1772825271484,1.02553483,1986.6,1986.3,0.0011]
[1772825272886,1.25849484,1986.5,1986.3,0.0011]
[1772825273201,2.28402967,1986.5,1986.3,0.0011]
[1772825273694,1.02553483,1986.4,1986.3,0.0011]
[1772825273901,1.02553483,1986.4,1985.9,1.00964682]
[1772825274103,1.02553483,1986.4,1985.5,1.00964682]
[1772825274478,0.89821628,1986.1,1985.3,1.00964682]
[1772825274669,0.89666047,1985.9,1985.1,1.00964682]
[1772825275185,0.89666047,1985.7,1985.1,1.00964682]
[1772825275366,0.89666047,1985.7,1985.1,2.26901757]
[1772825275776,0.89666047,1985.7,1985.1,1.00964682]
[1772825276379,0.89666047,1985.7,1985.1,2.2690286]
[1772825276579,0.89666047,1985.7,1985.2,0.99100441]
[1772825277185,2.1556818,1985.7,1985.2,2.2502737]
[1772825277371,0.89666047,1985.7,1985.2,2.2502737]
[1772825277572,2.15566375,1985.7,1985.2,2.2502737]
[1772825277782,2.15566375,1985.7,1985.2,0.99100441]
[1772825278197,2.15566375,1985.7,1985.2,2.25032261]
[1772825278398,2.15566375,1985.7,1985.2,0.99100441]
[1772825279567,0.88976747,1985.6,1985.0,2.25042559]
[1772825280202,0.88976747,1985.8,1985.1,0.99100441]
[1772825280413,0.88976747,1985.6,1984.9,2.25160314]
[1772825281683,0.88641066,1985.4,1984.9,2.25160314]
[1772825281882,0.88641066,1985.4,1984.8,5.03930817]
[1772825281883,0.88641066,1985.4,1984.8,0.0011]
[1772825282085,0.88765783,1985.3,1984.8,0.0011]
[1772825282285,0.88765783,1985.3,1984.6,0.0011]
[1772825282718,2.64512868,1985.5,1984.4,0.0011]
[1772825282719,0.88489689,1985.0,1984.4,0.0011]
[1772825282890,0.88489689,1985.0,1984.4,2.29412324]
[1772825283757,0.8832883,1985.2,1984.5,1.03320797]
[1772825284214,0.8832883,1985.2,1984.4,1.26091527]
[1772825284383,0.8832883,1985.2,1984.4,2.29412324]
[1772825284586,0.8832883,1985.2,1984.5,1.03320797]
[1772825285230,2.14083202,1985.3,1984.5,1.03320797]
[1772825285526,0.8815765,1985.2,1984.5,1.03320797]
[1772825286229,1.25938239,1985.1,1984.6,2.29290765]
[1772825286524,2.14093213,1985.2,1984.7,1.03320797]
[1772825287497,0.001,1985.1,1984.7,1.03320797]
[1772825287709,0.87740609,1985.1,1984.6,1.26079968]
[1772825288435,0.87640609,1985.0,1984.6,1.26079968]
[1772825288827,0.87640609,1985.0,1984.6,0.0011]
[1772825289838,1.26038517,1985.1,1984.6,1.03430797]
[1772825290137,0.001,1985.1,1984.6,1.03430797]
[1772825290326,0.001,1985.1,1984.7,2.29284418]
[1772825291849,0.86898237,1985.1,1984.6,0.0011]
[1772825292009,0.86798237,1985.0,1984.6,0.0011]
[1772825292510,2.12749166,1984.9,1984.6,0.0011]
[1772825292710,2.12590484,1985.1,1984.6,1.03430797]
[1772825293104,0.86651931,1985.1,1984.6,1.03430797]
[1772825293635,2.12590383,1985.1,1984.6,1.03430797]
[1772825293835,0.86651931,1985.1,1984.6,1.03430797]
[1772825294222,2.12590731,1985.1,1984.6,1.03430797]
[1772825294424,2.12590442,1985.1,1984.7,1.25963621]
[1772825294734,2.12590442,1985.1,1984.7,2.29284418]
[1772825294735,0.001,1985.1,1984.7,2.29284418]
[1772825295037,1.26038578,1985.1,1984.7,2.29284418]
[1772825295240,0.001,1985.1,1984.7,2.29284418]
[1772825295634,0.001,1985.1,1984.8,1.03320797]
[1772825296432,0.001,1985.1,1984.9,1.25950929]
[1772825296639,0.001,1985.1,1984.9,2.29271726]
[1772825298342,1.386,1985.5,1985.1,1.03320797]
[1772825298643,1.386,1985.5,1985.2,1.25931896]
[1772825300720,2.10587868,1985.8,1985.2,2.29252693]
[1772825301120,2.10591374,1985.8,1985.2,2.29252693]
[1772825301522,0.84693995,1985.8,1985.3,1.03320797]
[1772825301734,2.10588659,1985.8,1985.3,1.03320797]
[1772825301928,2.10588659,1985.8,1985.0,2.29261468]
[1772825301929,0.84451196,1985.7,1985.0,2.29261468]
[1772825302548,0.84451196,1985.5,1984.8,1.03320797]
[1772825303245,1.95466585,1985.9,1984.8,1.03320797]
[1772825303441,4.05567599,1985.9,1984.8,1.03320797]
[1772825303648,0.84207967,1985.8,1984.8,1.03320797]
[1772825304638,2.09865263,1985.7,1985.0,1.03320797]
[1772825304830,0.83722666,1985.6,1985.0,1.03320797]
[1772825305435,0.83722666,1985.8,1985.0,1.03320797]
[1772825306317,0.83722666,1985.8,1984.9,1.25950929]
[1772825306517,0.83722666,1985.8,1984.9,2.29271726]
[1772825307142,0.83239967,1985.6,1984.9,2.29271726]
[1772825309134,1.25912868,1985.5,1984.9,2.29271726]
[1772825309335,0.82758714,1985.4,1984.9,2.29271726]
[1772825310346,0.82758714,1985.4,1985.0,1.03320797]
[1772825311067,0.82278428,1985.6,1985.0,1.03430797]
[1772825311279,0.001,1985.4,1985.1,2.29259036]
[1772825313167,0.81929969,1985.4,1985.0,1.26053621]
[1772825313552,0.81929969,1985.4,1985.0,2.25249745]
[1772825315169,2.07849188,1985.4,1985.0,2.25249745]
[1772825315738,0.81929969,1985.4,1985.0,2.25249745]
[1772825315966,2.07849634,1985.4,1985.0,2.25249745]
[1772825316867,0.81929969,1985.4,1985.0,2.25249745]
[1772825318358,2.07850124,1985.4,1985.0,2.25249745]
[1772825318554,2.07849579,1985.4,1985.0,2.25249745]
[1772825318758,2.07849579,1985.4,1985.0,0.99306124]
[1772825318959,2.07849579,1985.4,1985.0,2.25248716]
[1772825319676,2.07849579,1985.4,1985.0,0.99306124]
[1772825320384,0.91946086,1985.3,1985.0,0.99306124]
[1772825320578,0.91946086,1985.3,1985.0,0.0011]
[1772825320959,0.001,1985.4,1985.0,0.99306124]
[1772825321165,2.17730604,1985.4,1985.0,0.99306124]
[1772825322554,0.91810838,1985.4,1985.1,1.25938239]
[1772825322757,0.001,1985.4,1985.2,0.99196124]
[1772825323475,0.001,1985.4,1985.1,1.25938239]
[1772825323657,0.001,1985.4,1985.1,2.25134363]
[1772825323858,1.26019866,1985.4,1985.1,0.99196124]
[1772825324065,2.17024626,1985.4,1985.1,0.99196124]
[1772825324266,2.17024626,1985.4,1985.0,1.26049607]
[1772825324485,0.9110476,1985.4,1985.0,1.26049607]
[1772825324658,2.17024263,1985.4,1985.1,2.25133952]
[1772825324858,2.17024263,1985.4,1985.1,0.99196124]
[1772825325288,2.17024356,1985.4,1985.1,0.99306124]
[1772825325470,0.001,1985.3,1985.1,0.99306124]
[1772825325784,0.001,1985.3,1985.1,2.2524428]
[1772825327266,0.001,1985.3,1985.1,1.26048156]
[1772825327462,0.001,1985.4,1985.2,0.99196124]
[1772825328276,0.001,1985.4,1985.1,2.2524428]
[1772825328587,2.16191867,1985.4,1985.1,0.99306124]
[1772825328822,0.89941794,1985.2,1985.1,0.0011]
[1772825331095,2.1587369,1985.2,1985.1,0.0011]
[1772825331297,0.8947736,1985.1,1984.8,0.0011]
[1772825333695,0.88793206,1984.9,1984.6,0.0011]
[1772825335606,1.25976316,1984.5,1984.2,0.0011]
[1772825335786,0.88361604,1984.6,1984.2,0.0011]
[1772825335990,0.88361604,1984.8,1984.2,0.92556081]
[1772825337675,0.87915475,1984.7,1984.3,1.25989013]
[1772825337901,0.87915475,1984.7,1984.3,2.18435094]
[1772825338875,0.87915475,1984.7,1984.3,2.18545094]
[1772825339494,2.13638935,1984.9,1984.4,0.92446081]
[1772825339698,0.87458582,1984.8,1984.4,0.92446081]
[1772825339887,0.87458582,1984.8,1984.3,0.0011]
[1772825340404,0.87458582,1984.8,1984.3,2.18544255]
[1772825340905,0.87458582,1984.8,1984.4,0.92446081]
[1772825342287,1.392,1985.0,1984.6,0.93593194]
[1772825342686,2.65145666,1985.0,1984.6,0.93593194]
[1772825343082,3.51944241,1985.0,1984.6,0.93593194]
[1772825343806,0.86571996,1984.9,1984.4,2.19571116]
[1772825344104,0.86571996,1984.9,1984.5,0.93593194]
[1772825344500,1.392,1985.0,1984.7,0.93593194]
[1772825345526,2.2554574,1985.0,1984.6,2.19563162]
[1772825346019,2.12153849,1985.2,1984.7,0.93593194]
[1772825346222,2.12152724,1985.2,1984.7,0.93593194]
[1772825346981,2.12152724,1985.2,1984.8,0.93593194]
[1772825348823,0.001,1985.2,1984.8,0.93593194]
[1772825349199,0.001,1985.2,1984.9,2.19544123]
[1772825349400,0.001,1985.2,1985.0,0.93593194]
[1772825350515,0.001,1985.4,1985.1,0.93593194]
[1772825351353,0.001,1985.4,1985.3,0.93593194]
[1772825351628,0.85100292,1985.7,1985.2,2.1952509]
[1772825353323,2.10567109,1985.6,1985.2,2.19524833]
[1772825353618,0.84660583,1985.6,1985.2,2.19524833]
[1772825354320,0.84660583,1985.6,1985.2,1.25930471]
[1772825354809,0.84660583,1985.6,1985.2,2.19523665]
[1772825355430,2.10570048,1985.6,1985.2,0.93593194]
[1772825355632,0.8421499,1985.5,1984.8,0.93593194]
[1772825357402,2.10130199,1985.5,1985.0,0.93593194]
[1772825357604,1.25915209,1985.5,1985.0,0.93593194]
[1772825358705,2.09245922,1985.5,1985.0,0.93593194]
[1772825358916,2.09245244,1985.5,1985.0,0.93593194]
[1772825359200,2.09243707,1985.5,1985.0,0.93593194]
[1772825360228,0.83110834,1985.7,1985.2,0.93593194]
[1772825360435,2.09014449,1985.7,1985.2,0.93593194]
[1772825362226,2.09014449,1985.7,1985.2,2.19521148]
[1772825362808,0.001,1985.4,1985.2,2.19521148]
[1772825366142,0.001,1985.4,1985.2,0.93593194]
[1772825366316,0.81901711,1985.4,1985.1,1.25933525]
[1772825366508,0.81901711,1985.4,1985.0,1.25939759]
[1772825366714,0.001,1985.4,1985.1,0.93593194]
[1772825367239,0.001,1985.4,1985.2,1.25931896]
[1772825367417,0.001,1985.4,1985.2,2.1952509]
[1772825367829,0.001,1985.4,1985.3,0.93593194]
[1772825369823,0.001,1985.4,1985.3,2.19518746]
[1772825375943,0.79673877,1985.9,1985.4,0.85462472]
[1772825377641,0.7925295,1985.8,1985.5,1.25912868]
[1772825380039,0.7925295,1985.8,1985.5,0.85462472]
[1772825380347,0.78831921,1985.9,1985.5,0.85462472]
[1772825380921,0.78831921,1985.9,1985.3,0.85462472]
[1772825381451,0.78621671,1985.7,1985.1,0.85572472]
[1772825381648,0.78412062,1985.5,1985.1,0.85572472]
[1772825382025,2.04318318,1985.7,1985.2,1.25931896]
[1772825382349,1.25906256,1985.7,1985.3,0.85462472]
[1772825382516,0.78412062,1985.7,1985.3,0.85462472]
[1772825383186,2.04312488,1985.7,1985.3,0.85462472]
[1772825384426,0.78412062,1985.7,1985.4,1.2591921]
[1772825384624,0.77787751,1986.0,1985.5,0.85462472]
[1772825385859,0.7758003,1985.7,1985.2,0.85462472]
[1772825386437,0.7758003,1985.7,1985.4,0.0011]
[1772825386737,0.78440558,1985.6,1985.4,0.0011]
[1772825387629,0.78233811,1985.5,1985.1,1.26047994]
[1772825387832,0.78233811,1985.5,1985.1,1.26046781]
[1772825388249,0.78233811,1985.5,1985.1,2.11509253]
[1772825388761,1.25911551,1985.6,1985.2,0.85462472]
[1772825389058,0.78032872,1985.6,1985.2,0.85462472]
[1772825389266,2.03926718,1985.8,1985.2,0.85462472]
[1772825391269,2.03926718,1985.8,1985.4,0.85462472]
[1772825391761,0.73941272,1985.7,1985.2,0.85462472]
[1772825391954,0.73941272,1985.7,1985.1,2.11510135]
[1772825392149,0.73941272,1985.7,1985.1,0.85572472]
[1772825392337,0.73941272,1985.7,1985.1,2.11506544]
[1772825392662,0.73941272,1985.7,1985.2,0.85462472]
[1772825393339,1.99437997,1985.6,1985.2,2.11394084]
[1772825394373,0.73531471,1985.6,1985.3,0.85462472]
[1772825396964,5.03580654,1985.8,1985.5,0.91784383]
[1772825396965,0.72727843,1985.8,1985.5,0.91784383]
[1772825397477,0.72727843,1985.8,1985.3,0.91784383]
[1772825397763,0.72727843,1985.8,1985.3,2.17708956]
[1772825398064,0.72727843,1985.8,1985.3,0.91784383]
[1772825398257,0.72727843,1985.8,1985.3,2.17708913]
[1772825398450,0.72727843,1985.8,1985.3,2.17818913]
[1772825398655,0.001,1985.5,1985.4,0.91784383]
[1772825398965,1.89327229,1986.3,1985.8,0.91784383]
[1772825399159,5.03492148,1986.6,1985.8,0.91784383]
[1772825399160,0.001,1986.2,1985.8,0.91784383]
[1772825399337,0.63560064,1986.5,1985.8,0.91784383]
[1772825400242,0.63531511,1986.3,1985.5,0.91784383]
[1772825400769,0.63336547,1985.8,1985.3,0.0011]
[1772825401669,0.63336547,1985.8,1985.3,0.8627403]
[1772825401846,5.03550027,1986.0,1985.3,0.8627403]
[1772825401847,0.001,1985.7,1985.3,0.8627403]
[1772825402158,0.63258674,1985.9,1985.3,0.8627403]
[1772825404255,0.001,1985.8,1985.5,0.8616403]
[1772825404571,0.001,1986.0,1985.5,0.8616403]
[1772825404770,1.88431135,1986.5,1985.5,0.8616403]
[1772825405855,2.66147526,1986.6,1985.5,0.8616403]
[1772825406057,0.62486769,1986.5,1985.6,1.276]
[1772825406256,0.62486769,1986.5,1985.7,0.8616403]
[1772825406456,1.25855819,1986.4,1985.9,0.8616403]
[1772825407659,2.66143451,1986.6,1985.9,0.8616403]
[1772825409378,1.403,1986.6,1986.1,0.8616403]
[1772825409577,2.66144378,1986.6,1986.1,0.8616403]
[1772825410192,3.27862599,1986.6,1986.1,0.8616403]
[1772825410488,0.001,1986.5,1986.1,0.8616403]
[1772825413851,1.57725634,1986.4,1985.6,0.8616403]
[1772825414098,0.60955188,1986.4,1985.6,0.8616403]
[1772825414986,0.60765346,1985.9,1985.4,0.8627403]
[1772825415152,1.57535792,1986.2,1985.5,0.8616403]
[1772825415351,0.001,1986.5,1985.5,0.8616403]
[1772825415352,0.60765346,1986.1,1985.5,0.8616403]
[1772825415557,1.86646514,1986.0,1985.5,0.8616403]
[1772825415759,1.25872196,1986.2,1985.6,0.8616403]
[1772825417090,1.25858237,1986.4,1985.6,0.8616403]
[1772825417994,0.001,1986.5,1985.8,0.8616403]
[1772825418202,0.60299202,1986.5,1985.8,0.8616403]
[1772825419299,0.026174,1986.5,1985.8,0.8616403]
[1772825420288,1.28469295,1986.5,1986.0,0.8616403]
[1772825420462,0.026174,1986.5,1986.0,0.8616403]
[1772825422362,0.001,1986.4,1986.2,0.8616403]
[1772825422562,0.59361279,1986.4,1985.9,0.0011]
[1772825423324,0.59361279,1986.4,1985.6,0.8627403]
[1772825423623,0.59151279,1986.2,1985.6,0.0011]
[1772825424515,1.85022944,1986.2,1985.6,0.8627403]
[1772825424809,0.59151279,1986.2,1985.6,0.8627403]
[1772825424971,1.25959426,1986.4,1985.6,0.8627403]
[1772825425620,1.25956484,1986.4,1985.6,0.8627403]
[1772825425801,0.001,1986.4,1985.6,0.8627403]
[1772825426002,1.25957376,1986.4,1985.6,0.8627403]
[1772825426380,0.001,1986.4,1985.8,0.8616403]
[1772825428509,0.001,1986.4,1986.0,0.8616403]
[1772825429410,0.026174,1986.5,1986.0,0.8616403]
[1772825430094,1e-08,1986.6,1986.4,0.8616403]
[1772825430498,1e-08,1986.6,1986.5,2.12013514]
[1772825431494,5.03183517,1987.4,1986.6,0.8616403]
[1772825432537,1.25792492,1987.4,1986.6,0.8616403]
[1772825432834,3.22970759,1987.5,1986.8,0.84428261]
[1772825433190,0.57506572,1987.4,1986.8,0.84428261]
[1772825433391,0.57506572,1987.4,1986.6,0.84428261]
[1772825434190,0.57506572,1987.4,1986.6,2.1027091]
[1772825434395,0.57506572,1987.4,1986.6,0.84428261]
[1772825434930,0.56986129,1987.2,1986.4,0.84428261]
[1772825436193,0.56986129,1987.2,1986.1,3.94401804]
[1772825436397,0.56803867,1986.9,1986.2,0.84428261]
[1772825436704,0.56803867,1986.9,1986.0,2.10307975]
[1772825436916,1.25830481,1986.8,1986.0,2.10307975]
[1772825437218,0.56622205,1986.7,1986.0,0.84428261]
[1772825437396,0.56622205,1986.7,1986.0,2.10309348]
[1772825438488,0.56622205,1986.7,1986.0,0.84428261]
[1772825439133,0.56261193,1986.5,1986.0,0.84428261]
[1772825440032,0.56261193,1986.5,1985.9,0.89659977]
[1772825440195,0.56261193,1986.5,1985.8,0.0011]
[1772825441006,0.55900625,1986.3,1985.8,0.0011]
[1772825441807,0.58216394,1986.2,1985.6,0.0011]
[1772825442334,0.58216394,1986.2,1985.4,0.66843261]
[1772825443239,0.75633387,1986.0,1985.4,1.92759228]
[1772825443405,1.2587483,1986.1,1985.5,0.84428261]
[1772825445748,1.2587483,1986.1,1985.5,2.10340888]
[1772825446156,1.2587483,1986.1,1985.6,0.84428261]
[1772825447424,0.75459985,1986.1,1985.6,0.84428261]
[1772825447938,0.75459985,1986.1,1985.6,0.84538261]